fUST/lending_fUST_20260121
["ID","MTS","AMOUNT","RATE_DAILY","PERIOD"]
[402851777,1768937438781,-328.79744204,0.00014247,2]
[402851779,1768937438792,-308.06360281,0.00014247,2]
[402851781,1768937438804,-1000.0,0.00014247,2]
[402851783,1768937438815,-436.47618632,0.00014247,2]
[402851785,1768937438825,-500.0,0.00014366,2]
[402851787,1768937438837,-500.0,0.00014366,2]
[402851789,1768937438848,-500.0,0.00014366,2]
[402851791,1768937438858,-230.73817969,0.00014366,2]
[402851794,1768937438869,-1187.95123198,0.00014368,2]
[402851796,1768937438880,-1500.0,0.00014368,2]
[402851798,1768937438892,-358.0,0.0001455,2]
[402851800,1768937438903,-1015.83976105,0.00014795,2]
[402851802,1768937438915,-2000.0,0.00014916,2]
[402851805,1768937438927,-177.0,0.00015011,2]
[402851807,1768937438941,-1500.0,0.00015464,2]
[402851809,1768937438952,-204.0,0.0001701,2]
[402851811,1768937438963,-250.0,0.00017043,2]
[402851813,1768937438975,-1041.66666667,0.0001759,2]
[402851815,1768937438985,-1010.39269248,0.00017955,2]
[402851817,1768937438996,-4000.0,0.00018,2]
[402851819,1768937439008,-762.0817078,0.00018055,2]
[402851821,1768937439018,-2150.738,0.0001842,2]
[402851823,1768937439028,-445.202766,0.00018475,2]
[402851825,1768937439038,-537.6845,0.00018475,2]
[402851827,1768937439048,-162.380719,0.00018475,2]
[402851829,1768937439058,-168.3888056,0.00018475,2]
[402851830,1768937439068,-174.61919141,0.00018475,2]
[402851831,1768937439080,-181.08010149,0.00018475,2]
[402851832,1768937439092,-187.78006525,0.00018475,2]
[402851834,1768937439102,-194.72792766,0.00018475,2]
[402851836,1768937439112,-201.93286099,0.00018475,2]
[402851838,1768937439123,-209.40437684,0.00018475,2]
[402851840,1768937439134,-217.15233878,0.00018475,2]
[402851842,1768937439144,-225.18697532,0.00018475,2]
[402851844,1768937439153,-233.51889341,0.00018475,2]
[402851846,1768937439163,-242.15909246,0.00018475,2]
[402851877,1768937439457,-251.11897888,0.00018475,2]
[402851880,1768937439475,-260.4103811,0.00018475,2]
[402851883,1768937439487,-270.0455652,0.00018475,2]
[402851885,1768937439497,-280.03725112,0.00018475,2]
[402851887,1768937439507,-290.39862941,0.00018475,2]
[402851889,1768937439517,-301.1433787,0.00018475,2]
[402851890,1768937439527,-910.0906816,0.00018486,2]
[402851892,1768937439536,-11692.902139,0.00018486,2]
[402851895,1768937439547,-3807.0827956,0.00018486,2]
[402851897,1768937439558,-199.2193005,0.00018486,2]
[402851899,1768937439567,-476.633975,0.00018486,2]
[402851901,1768937439577,-4818.3884525,0.00018486,2]
[402851903,1768937439587,-467.1704587,0.00018486,2]
[402851904,1768937439597,-280.78728236,0.00018599,2]
[402851906,1768937439606,-40813.42436414,0.000186,2]
[402851909,1768937439619,-9186.57563586,0.000186,2]
[402851911,1768937439628,-151.0,0.000186,2]
[402851913,1768937439638,-151.0,0.000186,2]
[402851915,1768937439649,-151.0,0.000186,2]
[402851917,1768937439658,-507.31,0.000187,3]
[402851919,1768937439667,-1455.62659403,0.000189,2]
[402851921,1768937439677,-303.10001603,0.000189,2]
[402851923,1768937439687,-7130.26622061,0.000189,2]
[402851925,1768937439696,-2230.315306,0.00018968,2]
[402851927,1768937439707,-13358.20804883,0.00018972,2]
[402851930,1768937439722,-446.03775753,0.00018972,2]
[402851932,1768937439734,-599.78745696,0.00018972,2]
[402851934,1768937439745,-554.58286843,0.00018972,2]
[402851936,1768937439756,-1316.91553916,0.00018972,2]
[402851939,1768937439767,-1382.8095471,0.00018972,2]
[402851941,1768937439779,-2342.83678099,0.00018972,2]
[402851943,1768937439789,-157.518131,0.00018972,2]
[402851945,1768937439798,-151.0,0.00018972,2]
[402851947,1768937439808,-151.0,0.00018972,2]
[402851949,1768937439818,-239.44512,0.00018972,2]
[402851951,1768937439828,-151.589246,0.00018972,2]
[402851953,1768937439838,-151.0,0.00018972,2]
[402851955,1768937439848,-151.0,0.00018972,2]
[402851957,1768937439858,-151.0,0.00018972,2]
[402851959,1768937439868,-151.0,0.00018972,2]
[402851961,1768937439878,-198.50389,0.00018972,2]
[402851963,1768937439887,-151.0,0.00018972,2]
[402851965,1768937439897,-151.0,0.00018972,2]
[402851967,1768937439907,-295.968738,0.00018972,2]
[402851969,1768937439916,-10730.87399034,0.00019,2]
[402851970,1768937439928,-5072.06148945,0.00019,2]
[402851972,1768937439939,-302.0,0.00019,2]
[402852007,1768937440793,-368.56045753,0.00019,2]
[402852009,1768937440804,-1086.82807321,0.00019,2]
[402852025,1768937443888,-151.0,0.000186,2]
[402852026,1768937443899,-151.0,0.00018972,2]
[402852027,1768937443910,-67781.76700024,0.00019,2]
[402852028,1768937443922,-5098.51023176,0.00019,2]
[402852029,1768937443933,-6799.04674321,0.00019,2]
[402852030,1768937443945,-5900.64193889,0.00019,2]
[402852031,1768937443960,-1135.04524533,0.00019,2]
[402852032,1768937443970,-1277.28638395,0.00019,2]
[402852047,1768937446632,-151.0,0.000186,2]
[402852048,1768937446641,-151.0,0.00018972,2]
[402852049,1768937446652,-4761.5819792,0.00019,2]
[402852050,1768937446688,-253.7425319,0.00019,2]
[402852051,1768937446699,-8950.0,0.00019,2]
[402852058,1768937488518,500.0,0.00027397,120]
[402852059,1768937492045,500.0,0.00027397,120]
[402852060,1768937493860,597.61,0.00027397,120]
[402852061,1768937493985,500.0,0.00027397,120]
[402852062,1768937505288,376.15008328,0.00027397,120]
[402852063,1768937519113,500.0,0.00027397,120]
[402852064,1768937521056,500.0,0.00027397,120]
[402852065,1768937521304,395.54,0.00027397,120]
[402852066,1768937530487,500.0,0.00027397,120]
[402852067,1768937532788,500.0,0.00027397,120]
[402852068,1768937550002,500.0,0.00027397,120]
[402852069,1768937550235,616.59,0.00027397,120]
[402852070,1768937553709,500.0,0.00027397,120]
[402852071,1768937555880,500.0,0.00027397,120]
[402852072,1768937556149,303.97,0.00027397,120]
[402852073,1768937557985,500.0,0.00027397,120]
[402852074,1768937558930,535.81,0.00027397,120]
[402852075,1768937561660,500.0,0.00027397,120]
[402852076,1768937561921,394.28,0.00027397,120]
[402852077,1768937562042,500.0,0.00027397,120]
[402852078,1768937565634,500.0,0.00027397,120]
[402852079,1768937575399,500.0,0.00027397,120]
[402852080,1768937575662,499.87,0.00027397,120]
[402852081,1768937584608,500.0,0.00027397,120]
[402852082,1768937591806,500.0,0.00027397,120]
[402852083,1768937592033,538.1,0.00027397,120]
[402852084,1768937596604,500.0,0.00027397,120]
[402852085,1768937598512,500.0,0.00027397,120]
[402852086,1768937600141,500.0,0.00027397,120]
[402852087,1768937600265,500.0,0.00027397,120]
[402852088,1768937673118,500.0,0.00027397,120]
[402852089,1768937673352,500.0,0.00027397,120]
[402852090,1768937673605,500.0,0.00027397,120]
[402852091,1768937677828,500.0,0.00027397,120]
[402852092,1768937679606,500.0,0.00027397,120]
[402852093,1768937686706,500.0,0.00027397,120]
[402852094,1768937686990,500.0,0.00027397,120]
[402852095,1768937687241,498.01270149,0.00027397,120]
[402852096,1768937689409,500.0,0.00027397,120]
[402852097,1768937689639,500.0,0.00027397,120]
[402852098,1768937701353,500.0,0.00027397,120]
[402852099,1768937701596,341.62,0.00027397,120]
[402852100,1768937748268,500.0,0.00027397,120]
[402852101,1768937754610,500.0,0.00027397,120]
[402852102,1768937754969,593.11,0.00027397,120]
[402852103,1768937763684,500.0,0.00027397,120]
[402852104,1768937764126,566.58,0.00027397,120]
[402852105,1768937766284,500.0,0.00027397,120]
[402852106,1768937768129,500.0,0.00027397,120]
[402852107,1768937798504,646.24,0.00027397,120]
[402852108,1768937933450,500.0,0.00027397,120]
[402852109,1768937933684,500.0,0.00027397,120]
[402852110,1768937933946,500.0,0.00027397,120]
[402852111,1768937935814,500.0,0.00027397,120]
[402852112,1768937936068,500.0,0.00027397,120]
[402852113,1768937940923,628.18,0.00027397,120]
[402852114,1768937961643,500.0,0.00027397,120]
[402852116,1768937999789,500.0,0.00027397,120]
[402852117,1768938001513,500.0,0.00027397,120]
[402852118,1768938005023,500.0,0.00027397,120]
[402852119,1768938009938,321.33888003,0.00027397,120]
[402852120,1768938012573,500.0,0.00027397,120]
[402852121,1768938012822,580.02,0.00027397,120]
[402852122,1768938017478,532.00436142,0.00027397,120]
[402852123,1768938019410,280.86,0.00027397,120]
[402852124,1768938031575,500.0,0.00027397,120]
[402852125,1768938032343,500.0,0.00027397,120]
[402852126,1768938036045,648.17,0.00027397,120]
[402852127,1768938043726,500.0,0.00027397,120]
[402852128,1768938047152,500.0,0.00027397,120]
[402852129,1768938047359,272.35,0.00027397,120]
[402852130,1768938048862,500.0,0.00027397,120]
[402852131,1768938055307,500.0,0.00027397,120]
[402852132,1768938055684,500.0,0.00027397,120]
[402852133,1768938055815,351.59,0.00027397,120]
[402852134,1768938089198,500.0,0.00027397,120]
[402852135,1768938089449,528.91250035,0.00027397,120]
[402852136,1768938091971,583.06,0.00027397,120]
[402852138,1768938093389,530.24218336,0.00027397,120]
[402852139,1768938093777,500.0,0.00027397,120]
[402852140,1768938093998,178.11,0.00027397,120]
[402852141,1768938103353,500.0,0.00027397,120]
[402852142,1768938103628,204.85,0.00027397,120]
[402852143,1768938112497,500.0,0.00027397,120]
[402852144,1768938113413,500.0,0.00027397,120]
[402852145,1768938117842,500.0,0.00027397,120]
[402852146,1768938118560,431.61312093,0.00027397,120]
[402852147,1768938139544,575.6,0.00027397,120]
[402852148,1768938145123,500.0,0.00027397,120]
[402852149,1768938147018,611.76,0.00027397,120]
[402852150,1768938153692,500.0,0.00027397,120]
[402852151,1768938160170,500.0,0.00027397,120]
[402852152,1768938178558,833.83,0.00027397,120]
[402852153,1768938178785,833.83,0.00027397,120]
[402852154,1768938179048,833.83,0.00027397,120]
[402852155,1768938179289,833.83,0.00027397,120]
[402852156,1768938179511,833.83,0.00027397,120]
[402852157,1768938179814,833.83,0.00027397,120]
[402852158,1768938180048,833.83,0.00027397,120]
[402852159,1768938180312,833.83,0.00027397,120]
[402852160,1768938180547,833.83,0.00027397,120]
[402852161,1768938180793,833.83,0.00027397,120]
[402852162,1768938181038,833.83,0.00027397,120]
[402852163,1768938181282,833.83,0.00027397,120]
[402852164,1768938181523,833.83,0.00027397,120]
[402852165,1768938181761,833.83,0.00027397,120]
[402852166,1768938181986,833.83,0.00027397,120]
[402852167,1768938182235,833.83,0.00027397,120]
[402852168,1768938182475,833.83,0.00027397,120]
[402852169,1768938182735,833.83,0.00027397,120]
[402852170,1768938183013,833.83,0.00027397,120]
[402852171,1768938183413,833.83,0.00027397,120]
[402852172,1768938183564,833.83,0.00027397,120]
[402852173,1768938183721,833.83,0.00027397,120]
[402852174,1768938183970,833.83,0.00027397,120]
[402852175,1768938184210,833.91,0.00027397,120]
[402852176,1768938186152,500.0,0.00027397,120]
[402852177,1768938186386,500.0,0.00027397,120]
[402852178,1768938186634,400.99,0.00027397,120]
[402852179,1768938188421,500.0,0.00027397,120]
[402852180,1768938188705,325.62980643,0.00027397,120]
[402852181,1768938224188,510.34,0.00027397,120]
[402852182,1768938237271,238.33114,0.00027397,120]
[402852183,1768938246269,500.0,0.00027397,120]
[402852184,1768938246748,500.0,0.00027397,120]
[402852185,1768938265626,500.0,0.00027397,120]
[402852186,1768938267690,538.97966179,0.00027397,120]
[402852187,1768938269614,500.0,0.00027397,120]
[402852188,1768938270041,609.53,0.00027397,120]
[402852189,1768938274536,640.69,0.00027397,120]
[402852193,1768938300939,500.0,0.00027397,120]
[402852194,1768938319205,500.0,0.00027397,120]
[402852195,1768938333411,500.0,0.00027397,120]
[402852196,1768938333639,290.27,0.00027397,120]
[402852197,1768938335070,500.0,0.00027397,120]
[402852198,1768938350571,500.0,0.00027397,120]
[402852199,1768938359140,603.67,0.00027397,120]
[402852200,1768938368677,500.0,0.00027397,120]
[402852201,1768938369858,500.0,0.00027397,120]
[402852202,1768938370118,500.0,0.00027397,120]
[402852203,1768938370359,500.0,0.00027397,120]
[402852204,1768938372171,500.0,0.00027397,120]
[402852205,1768938372383,500.0,0.00027397,120]
[402852206,1768938372616,500.0,0.00027397,120]
[402852207,1768938375428,500.0,0.00027397,120]
[402852208,1768938386036,500.0,0.00027397,120]
[402852224,1768938526290,500.0,0.00027397,120]
[402852225,1768938526551,500.0,0.00027397,120]
[402852226,1768938526844,384.98305638,0.00027397,120]
[402852227,1768938566065,344.66176019,0.00027397,120]
[402852384,1768938635650,-170.42,9.956e-05,2]
[402852385,1768938635660,-551.28839152,9.956e-05,2]
[402852386,1768938635671,-7.71160848,9.956e-05,2]
[402852387,1768938635681,-194.77,0.00010324,2]
[402852388,1768938635691,-219.11,0.00010693,2]
[402852389,1768938635700,-243.46,0.00011062,2]
[402852390,1768938635709,-141.93966706,0.00012879,10]
[402852391,1768938635720,-1330.86509089,0.00012879,10]
[402852629,1768938639843,-519.88544534,0.00012879,10]
[402852636,1768938639897,-1135.23247575,0.00012879,10]
[402852715,1768938642816,-1872.07732096,0.00012879,10]
[402852716,1768938642826,-166.7477736,0.00013273,2]
[402852717,1768938642835,-514.22909233,0.00013273,2]
[402852718,1768938642844,-500.0,0.00013699,2]
[402852719,1768938642853,-331.25612035,0.00014247,2]
[402852720,1768938642863,-177.0,0.00015076,2]
[402852721,1768938642872,-4126.86422661,0.00015076,2]
[402852722,1768938642881,-1000.0,0.00016574,2]
[402852723,1768938642890,-204.0,0.00017076,2]
[402852724,1768938642899,-617.19605109,0.00017374,2]
[402852725,1768938642911,-424.47061558,0.00017374,2]
[402852726,1768938642920,-2694.7454996,0.00017691,2]
[402852727,1768938642929,-170.8554559,0.00017885,2]
[402852728,1768938642938,-285.9809915,0.00018243,2]
[402852729,1768938642947,-305.2501772,0.00018243,2]
[402852730,1768938642957,-305.2501772,0.00018243,2]
[402852731,1768938642966,-305.2501772,0.00018243,2]
[402852732,1768938642975,-2150.738,0.00018281,2]
[402852733,1768938642984,-485.11464526,0.00018388,2]
[402852734,1768938642996,-14.88535474,0.00018388,2]
[402852735,1768938643006,-500.0,0.00018388,2]
[402852736,1768938643015,-522.14600656,0.00018388,2]
[402852737,1768938643024,-373.64749621,0.00018388,2]
[402852738,1768938643034,-500.0,0.00018388,2]
[402852739,1768938643043,-325.04406061,0.00018388,2]
[402852740,1768938643054,-174.95593939,0.00018388,2]
[402852741,1768938643066,-239.13583896,0.0001839,2]
[402852742,1768938643077,-138.96268734,0.0001839,2]
[402852743,1768938643086,-137.21741698,0.0001839,2]
[402852744,1768938643105,-240.88110932,0.0001839,2]
[402852745,1768938643114,-756.1970526,0.0001839,2]
[402852746,1768938643123,-377.2023993,0.00018466,2]
[402852747,1768938643133,-378.0985263,0.00018466,2]
[402852748,1768938643142,-378.0985263,0.00018466,2]
[402852749,1768938643153,-782.99969684,0.000185,2]
[402852750,1768938643166,-2779.06493124,0.000185,2]
[402852760,1768938645951,-5000.0,0.0001275,10]
[402852761,1768938645962,-25716.80334768,0.000185,2]
[402852762,1768938645975,-2401.14197794,0.000185,2]
[402852763,1768938645986,-377.9491718,0.00018541,2]
[402852764,1768938645998,-377.9491718,0.000186,2]
[402852765,1768938646010,-2531.73648535,0.000186,2]
[402852766,1768938674075,500.0,0.00027397,120]
[402852767,1768938674316,500.0,0.00027397,120]
[402852768,1768938674565,500.0,0.00027397,120]
[402852769,1768938674800,500.0,0.00027397,120]
[402852770,1768938675041,348.06,0.00027397,120]
[402852771,1768938677034,500.0,0.00027397,120]
[402852772,1768938682987,517.36,0.00027397,120]
[402852773,1768938684329,532.35,0.00027397,120]
[402852774,1768938738610,205.0424937,0.00027397,120]
[402852780,1768938756519,500.0,0.00027397,120]
[402852781,1768938765769,500.0,0.00027397,120]
[402852782,1768938766023,500.0,0.00027397,120]
[402852783,1768938777771,500.0,0.00027397,120]
[402852784,1768938777999,500.0,0.00027397,120]
[402852785,1768938778243,500.0,0.00027397,120]
[402852786,1768938778477,500.0,0.00027397,120]
[402852787,1768938778721,500.0,0.00027397,120]
[402852788,1768938778958,276.89,0.00027397,120]
[402852789,1768938780944,500.0,0.00027397,120]
[402852790,1768938781350,500.0,0.00027397,120]
[402852791,1768938783333,500.0,0.00027397,120]
[402852792,1768938788860,500.0,0.00027397,120]
[402852793,1768938789115,500.0,0.00027397,120]
[402852794,1768938789491,504.2,0.00027397,120]
[402852795,1768938791552,500.0,0.00027397,120]
[402852796,1768938791796,500.0,0.00027397,120]
[402852797,1768938792070,266.1,0.00027397,120]
[402852798,1768938793997,638.39,0.00027397,120]
[402852799,1768938803438,348.04789676,0.00027397,120]
[402852800,1768938809271,500.0,0.00027397,120]
[402852801,1768938811071,500.0,0.00027397,120]
[402852802,1768938814082,500.0,0.00027397,120]
[402852803,1768938817750,500.0,0.00027397,120]
[402852804,1768938818867,576.16,0.00027397,120]
[402852805,1768938820390,500.0,0.00027397,120]
[402852806,1768938824063,500.0,0.00027397,120]
[402852807,1768938825912,500.0,0.00027397,120]
[402852808,1768938827746,274.62103674,0.00027397,120]
[402852809,1768938827852,511.63,0.00027397,120]
[402852810,1768938829632,500.0,0.00027397,120]
[402852811,1768938829894,322.62,0.00027397,120]
[402852812,1768938835592,500.0,0.00027397,120]
[402852813,1768938839870,500.0,0.00027397,120]
[402852814,1768938842077,500.0,0.00027397,120]
[402852815,1768938842311,337.92,0.00027397,120]
[402852817,1768938844304,500.0,0.00027397,120]
[402852818,1768938846056,500.0,0.00027397,120]
[402852819,1768938859980,500.0,0.00027397,120]
[402852820,1768938860228,500.0,0.00027397,120]
[402852821,1768938860484,500.0,0.00027397,120]
[402852822,1768938860712,189.4,0.00027397,120]
[402852823,1768938860819,500.0,0.00027397,120]
[402852824,1768938864403,500.0,0.00027397,120]
[402852825,1768938864640,311.39,0.00027397,120]
[402852826,1768938868631,500.0,0.00027397,120]
[402852827,1768938868853,237.68,0.00027397,120]
[402852828,1768938869544,500.0,0.00027397,120]
[402852829,1768938869793,581.56,0.00027397,120]
[402852830,1768938871448,272.37095351,0.00027397,120]
[402852831,1768938872702,500.0,0.00027397,120]
[402852832,1768938873668,500.0,0.00027397,120]
[402852833,1768938878431,411.06,0.00027397,120]
[402852834,1768938884794,352.98387266,0.00027397,120]
[402852835,1768938884902,500.0,0.00027397,120]
[402852838,1768938888575,500.0,0.00027397,120]
[402852839,1768938888941,500.0,0.00027397,120]
[402852840,1768938889211,152.08,0.00027397,120]
[402852841,1768938889317,500.0,0.00027397,120]
[402852842,1768938889420,500.0,0.00027397,120]
[402852843,1768938889526,204.12,0.00027397,120]
[402852845,1768938889658,500.0,0.00027397,120]
[402852846,1768938891036,500.0,0.00027397,120]
[402852849,1768938891150,500.0,0.00027397,120]
[402852850,1768938891308,187.93,0.00027397,120]
[402852851,1768938891429,500.0,0.00027397,120]
[402852853,1768938893033,500.0,0.00027397,120]
[402852856,1768938897356,500.0,0.00027397,120]
[402852857,1768938897699,337.21,0.00027397,120]
[402852859,1768938899444,500.0,0.00027397,120]
[402852860,1768938901255,500.0,0.00027397,120]
[402852861,1768938901802,500.0,0.00027397,120]
[402852862,1768938902758,500.0,0.00027397,120]
[402852863,1768938903021,481.27,0.00027397,120]
[402852864,1768938903205,500.0,0.00027397,120]
[402852865,1768938904153,500.0,0.00027397,120]
[402852866,1768938904389,432.18,0.00027397,120]
[402852867,1768938905063,500.0,0.00027397,120]
[402852868,1768938905300,542.67,0.00027397,120]
[402852869,1768938906297,500.0,0.00027397,120]
[402852870,1768938906547,323.6,0.00027397,120]
[402852871,1768938907086,500.0,0.00027397,120]
[402852872,1768938908322,500.0,0.00027397,120]
[402852873,1768938908554,557.92,0.00027397,120]
[402852874,1768938908853,500.0,0.00027397,120]
[402852875,1768938909272,500.0,0.00027397,120]
[402852876,1768938915758,500.0,0.00027397,120]
[402852877,1768938918747,500.0,0.00027397,120]
[402852878,1768938918989,210.26,0.00027397,120]
[402852879,1768938920925,500.0,0.00027397,120]
[402852880,1768938922413,500.0,0.00027397,120]
[402852881,1768938923737,500.0,0.00027397,120]
[402852882,1768938924650,500.0,0.00027397,120]
[402852883,1768938925104,500.0,0.00027397,120]
[402852884,1768938925367,500.0,0.00027397,120]
[402852885,1768938925653,510.54,0.00027397,120]
[402852886,1768938925931,500.0,0.00027397,120]
[402852887,1768938926217,322.2,0.00027397,120]
[402852888,1768938927599,500.0,0.00027397,120]
[402852889,1768938927727,563.16,0.00027397,120]
[402852890,1768938927865,500.0,0.00027397,120]
[402852891,1768938928072,500.0,0.00027397,120]
[402852892,1768938930029,500.0,0.00027397,120]
[402852893,1768938930277,535.74,0.00027397,120]
[402852894,1768938931817,500.0,0.00027397,120]
[402852895,1768938932542,500.0,0.00027397,120]
[402852896,1768938933211,547.09236024,0.00027397,120]
[402852897,1768938933906,500.0,0.00027397,120]
[402852898,1768938934149,500.0,0.00027397,120]
[402852899,1768938934389,290.02,0.00027397,120]
[402852900,1768938934709,500.0,0.00027397,120]
[402852901,1768938935443,500.0,0.00027397,120]
[402852902,1768938936329,500.0,0.00027397,120]
[402852903,1768938938118,517.36,0.00027397,120]
[402852904,1768938938792,500.0,0.00027397,120]
[402852905,1768938939210,500.0,0.00027397,120]
[402852906,1768938939438,500.0,0.00027397,120]
[402852907,1768938939568,348.01,0.00027397,120]
[402852908,1768938939819,500.0,0.00027397,120]
[402852909,1768938940979,500.0,0.00027397,120]
[402852910,1768938941539,500.0,0.00027397,120]
[402852911,1768938941796,500.0,0.00027397,120]
[402852912,1768938942258,500.0,0.00027397,120]
[402852913,1768938942385,500.0,0.00027397,120]
[402852914,1768938942576,398.92,0.00027397,120]
[402852915,1768938943103,500.0,0.00027397,120]
[402852916,1768938943340,163.28,0.00027397,120]
[402852917,1768938943669,500.0,0.00027397,120]
[402852918,1768938944462,500.0,0.00027397,120]
[402852919,1768938944717,500.0,0.00027397,120]
[402852920,1768938944844,500.0,0.00027397,120]
[402852921,1768938944978,634.12,0.00027397,120]
[402852922,1768938945105,500.0,0.00027397,120]
[402852923,1768938945236,500.0,0.00027397,120]
[402852924,1768938945360,500.0,0.00027397,120]
[402852925,1768938945487,511.46,0.00027397,120]
[402852926,1768938945619,332.88,0.00027397,120]
[402852927,1768938945745,500.0,0.00027397,120]
[402852928,1768938946158,500.0,0.00027397,120]
[402852929,1768938946805,484.52529222,0.00027397,120]
[402852930,1768938946989,500.0,0.00027397,120]
[402852931,1768938947526,500.0,0.00027397,120]
[402852932,1768938947647,500.0,0.00027397,120]
[402852933,1768938952446,525.19722982,0.00027397,120]
[402852934,1768938952597,500.0,0.00027397,120]
[402852935,1768938953954,500.0,0.00027397,120]
[402852936,1768938954183,500.0,0.00027397,120]
[402852937,1768938954423,418.84,0.00027397,120]
[402852938,1768938954552,500.0,0.00027397,120]
[402852939,1768938955026,500.0,0.00027397,120]
[402852940,1768938955264,364.90375644,0.00027397,120]
[402852941,1768938955479,500.0,0.00027397,120]
[402852942,1768938957376,500.0,0.00027397,120]
[402852943,1768938957514,500.0,0.00027397,120]
[402852944,1768938957974,646.41,0.00027397,120]
[402852945,1768938959570,500.0,0.00027397,120]
[402852946,1768938959885,454.48,0.00027397,120]
[402852947,1768938962528,500.0,0.00027397,120]
[402852948,1768938962779,238.3,0.00027397,120]
[402852949,1768938963215,500.0,0.00027397,120]
[402852950,1768938963409,500.0,0.00027397,120]
[402852951,1768938964537,500.0,0.00027397,120]
[402852952,1768938964664,500.0,0.00027397,120]
[402852953,1768938964796,500.0,0.00027397,120]
[402852954,1768938964925,500.0,0.00027397,120]
[402852955,1768938965073,500.0,0.00027397,120]
[402852956,1768938965198,500.0,0.00027397,120]
[402852957,1768938965347,295.72,0.00027397,120]
[402852958,1768938965485,500.0,0.00027397,120]
[402852959,1768938965644,464.28,0.00027397,120]
[402852960,1768938966634,500.0,0.00027397,120]
[402852961,1768938966903,640.39,0.00027397,120]
[402852962,1768938968349,500.0,0.00027397,120]
[402852963,1768938969042,500.0,0.00027397,120]
[402852964,1768938969281,180.68,0.00027397,120]
[402852965,1768938970397,500.0,0.00027397,120]
[402852966,1768938970667,500.0,0.00027397,120]
[402852967,1768938972507,500.0,0.00027397,120]
[402852968,1768938972739,500.0,0.00027397,120]
[402852969,1768938973252,500.0,0.00027397,120]
[402852970,1768938973714,500.0,0.00027397,120]
[402852971,1768938973957,500.0,0.00027397,120]
[402852972,1768938974192,500.0,0.00027397,120]
[402852973,1768938974322,500.0,0.00027397,120]
[402852974,1768938974433,500.0,0.00027397,120]
[402852975,1768938974551,295.56,0.00027397,120]
[402852976,1768938974680,547.94,0.00027397,120]
[402852977,1768938976511,500.0,0.00027397,120]
[402852978,1768938976771,500.0,0.00027397,120]
[402852979,1768938977163,500.0,0.00027397,120]
[402852980,1768938978340,500.0,0.00027397,120]